bitfinex-derivatives/quotes_SOLF0:USTF0_20251018
["timestamp","ask_amount","ask_price","bid_price","bid_amount"]
[1760784101304,2.75,185.79,185.74,2.85]
[1760784101506,4.8427,185.8,185.73,2.86489833]
[1760784101708,12.18945048,185.79,185.73,2.86489833]
[1760784102006,2.75,185.79,185.73,2.86489833]
[1760784106013,2.75,185.79,185.73,47.80489833]
[1760784106712,2.75,185.79,185.73,47.78489833]
[1760784107611,2.75,185.79,185.73,50.58489833]
[1760784107912,2.75,185.79,185.73,5.66489833]
[1760784108113,2.75,185.79,185.73,50.58489833]
[1760784108312,2.75,185.79,185.73,5.66489833]
[1760784108614,2.75,185.79,185.73,50.58489833]
[1760784108812,2.75,185.79,185.73,5.66489833]
[1760784109013,2.75,185.79,185.73,50.58489833]
[1760784109715,2.75,185.79,185.73,50.56489833]
[1760784110116,2.75,185.79,185.73,5.66489833]
[1760784110416,2.75,185.79,185.73,50.56489833]
[1760784110720,2.75,185.79,185.73,5.66489833]
[1760784111818,2.67,185.78,185.73,5.66489833]
[1760784112314,2.67,185.78,185.73,2.86489833]
[1760784112511,2.67,185.78,185.74,2.8]
[1760784112713,4.8431,185.79,185.72,44.9]
[1760784112915,2.67,185.78,185.72,47.7]
[1760784113418,7.5133,185.78,185.72,47.7]
[1760784113811,7.5133,185.78,185.72,2.8]
[1760784115223,7.5133,185.78,185.72,47.68]
[1760784115422,7.5133,185.78,185.72,44.88]
[1760784115624,4.8427,185.8,185.73,2.8]
[1760784116625,2.67,185.79,185.73,2.8]
[1760784117225,7.5131,185.79,185.73,2.8]
[1760784117425,5.1308428,185.78,185.73,2.8]
[1760784117627,7.5131,185.79,185.73,2.8]
[1760784117930,7.80083517,185.78,185.72,44.88]
[1760784118127,2.67,185.78,185.73,2.8]
[1760784118320,2.67,185.78,185.72,44.88]
[1760784118627,2.67,185.78,185.73,44.88]
[1760784118817,2.67,185.78,185.74,2.8]
[1760784119329,2.67,185.78,185.73,44.86]
[1760784120019,2.67,185.78,185.74,2.8]
[1760784120221,4.8431,185.79,185.74,2.8]
[1760784120426,2.67,185.77,185.74,2.8]
[1760784120627,4.8433,185.78,185.74,2.8]
[1760784120832,9.43587239,185.77,185.72,44.86]
[1760784121025,2.67,185.76,185.73,2.8]
[1760784122031,2.67,185.74,185.72,44.86]
[1760784122325,2.67,185.74,185.69,92.32467924]
[1760784122830,2.67,185.74,185.71,2.8]
[1760784123128,2.67,185.74,185.7,44.86]
[1760784123129,2.67,185.74,185.7,2.8]
[1760784123330,2.67,185.75,185.71,47.72489833]
[1760784123534,4.8439,185.76,185.72,2.8]
[1760784123731,2.67,185.75,185.72,2.8]
[1760784126331,4.8433,185.78,185.72,2.77]
[1760784126636,2.81,185.8,185.74,2.86489833]
[1760784126836,12.24337154,185.79,185.74,2.86489833]
[1760784127136,5.12600777,185.78,185.75,2.77]
[1760784127332,2.81,185.79,185.75,2.77]
[1760784127532,5.12644534,185.78,185.75,2.77]
[1760784127732,2.81,185.79,185.75,2.77]
[1760784127933,5.12644534,185.78,185.75,2.77]
[1760784128136,2.81,185.79,185.75,2.77]
[1760784128332,2.81,185.77,185.74,50.49489833]
[1760784128533,2.81,185.79,185.75,2.77]
[1760784128737,7.93695125,185.78,185.75,2.77]
[1760784129038,2.81,185.78,185.75,2.77]
[1760784132443,4.8428,185.8,185.74,47.72489833]
[1760784132737,5.12969311,185.79,185.74,2.86489833]
[1760784132946,4.8428,185.8,185.75,2.77]
[1760784133136,4.8428,185.8,185.74,47.72489833]
[1760784133338,2.81,185.8,185.75,47.63]
[1760784133639,2.81,185.8,185.74,7.70889833]
[1760784133844,2.81,185.8,185.77,2.77]
[1760784134037,7.6517,185.84,185.78,2.77]
[1760784134337,14.19590656,185.83,185.77,2.86489833]
[1760784134539,9.45648386,185.82,185.8,2.86489833]
[1760784134735,7.81662391,185.88,185.81,2.77]
[1760784135042,6.65407271,185.9,185.81,2.77]
[1760784135043,12.26943599,185.87,185.83,5.63489833]
[1760784135238,5.00662391,185.91,185.83,2.77]
[1760784135239,7.9423961,185.86,185.83,2.77]
[1760784135543,12.26773995,185.85,185.82,44.86]
[1760784135739,5.13142266,185.84,185.82,47.63]
[1760784135943,2.81,185.85,185.82,47.63]
[1760784136242,5.13121372,185.84,185.82,47.63]
[1760784136443,2.81,185.85,185.82,47.63]
[1760784136643,5.13180234,185.84,185.82,47.63]
[1760784136844,2.81,185.85,185.82,47.63]
[1760784137045,5.13180487,185.84,185.82,47.63]
[1760784137247,2.81,185.85,185.82,47.63]
[1760784137546,9.45910914,185.84,185.82,47.63]
[1760784137748,2.81,185.85,185.82,47.63]
[1760784138046,9.45910405,185.84,185.82,2.77]
[1760784138250,2.81,185.85,185.82,2.77]
[1760784138444,9.45840096,185.84,185.82,2.77]
[1760784138642,2.81,185.85,185.82,2.77]
[1760784138843,9.45911463,185.84,185.82,2.77]
[1760784139044,9.84742391,185.88,185.82,2.77]
[1760784139245,9.45911463,185.87,185.82,2.86489833]
[1760784139549,9.45911463,185.86,185.82,2.86489833]
[1760784139749,2.73,185.87,185.83,2.63]
[1760784139950,9.45967836,185.86,185.83,2.63]
[1760784140148,2.73,185.87,185.83,2.63]
[1760784140454,7.86239313,185.86,185.83,2.63]
[1760784140648,2.73,185.86,185.83,2.63]
[1760784141248,2.73,185.89,185.82,5.49489833]
[1760784141450,9.45286605,185.88,185.83,2.63]
[1760784141748,9.45286605,185.88,185.82,2.86489833]
[1760784141749,9.45286605,185.87,185.82,2.86489833]
[1760784141940,5.12866768,185.86,185.83,2.63]
[1760784142250,2.73,185.89,185.83,2.63]
[1760784142441,9.44998892,185.88,185.85,2.86489833]
[1760784142643,5.12713243,185.87,185.86,2.63]
[1760784143150,2.73,185.92,185.86,2.63]
[1760784143349,9.44677527,185.91,185.85,50.33489833]
[1760784143549,9.44677527,185.9,185.85,47.70489833]
[1760784143748,9.44677527,185.89,185.85,47.70489833]
[1760784143950,2.73,185.92,185.86,2.63]
[1760784144146,12.17653125,185.91,185.85,50.33489833]
[1760784144345,9.44653125,185.9,185.87,2.63]
[1760784144653,5.12514744,185.89,185.87,2.63]
[1760784144949,2.73,185.9,185.87,2.63]
[1760784146252,4.8395,185.93,185.86,44.84]
[1760784146447,9.4358723,185.92,185.89,2.63]
[1760784146655,5.11915671,185.91,185.89,2.63]
[1760784146956,2.73,185.92,185.89,2.63]
[1760784147253,5.11912678,185.91,185.89,2.63]
[1760784147453,2.73,185.92,185.89,2.63]
[1760784147753,7.84724117,185.91,185.89,2.63]
[1760784147950,2.73,185.91,185.88,5.49489833]
[1760784148152,2.73,185.93,185.88,2.86489833]
[1760784148354,2.73,185.91,185.87,44.84]
[1760784148551,2.73,185.93,185.85,10.33609833]
[1760784148751,2.73,185.91,185.85,10.33609833]
[1760784148949,2.73,185.93,185.86,44.82]
[1760784149149,9.42905132,185.92,185.85,10.33609833]
[1760784149349,5.11562719,185.91,185.88,1.83240036]
[1760784149653,2.73,185.93,185.88,1.83240036]
[1760784149852,2.73,185.91,185.88,1.83240036]
[1760784150750,2.73,185.93,185.88,1.83240036]
[1760784150952,2.73,185.91,185.88,1.83240036]
[1760784152654,1.83240036,185.96,185.78,2.63]
[1760784152856,4.56240036,185.94,185.87,1.83240036]
[1760784153049,9.44209067,185.93,185.87,1.83240036]
[1760784153252,4.8399,185.91,185.87,1.83240036]
[1760784153453,2.73,185.9,185.87,4.46240036]
[1760784155361,2.73,185.89,185.87,4.46240036]
[1760784156561,2.73,185.89,185.77,62.0]
[1760784156562,7.86223009,185.88,185.82,1.83240036]
[1760784156760,2.73,185.88,185.82,1.83240036]
[1760784157163,2.73,185.86,185.84,1.83240036]
[1760784158060,4.841,185.87,185.85,2.63]
[1760784159463,7.571,185.87,185.84,4.46240036]
[1760784159961,4.8404,185.89,185.84,4.46240036]
[1760784160264,7.73662391,185.94,185.87,2.63]
[1760784160466,9.74817975,185.93,185.87,2.63]
[1760784160664,14.58787975,185.92,185.86,2.63]
[1760784160862,4.8397,185.92,185.86,2.63]
[1760784161365,2.73,185.93,185.86,2.63]
[1760784161565,7.86204505,185.92,185.9,1.83240036]
[1760784161765,2.73,185.92,185.9,1.83240036]
[1760784162163,2.73,185.95,185.91,2.63]
[1760784162464,5.13223472,185.94,185.92,1.83240036]
[1760784162656,1.83240036,186.0,185.92,1.83240036]
[1760784162657,4.12714118,185.99,185.92,1.83240036]
[1760784162857,7.86274236,185.98,185.96,1.83240036]
[1760784163065,2.73,185.98,185.96,1.83240036]
[1760784163265,4.12739285,186.02,185.96,1.83240036]
[1760784163464,9.25824965,186.01,185.96,1.83240036]
[1760784163657,6.24459382,186.05,185.96,1.83240036]
[1760784163658,2.73,185.99,185.96,1.83240036]
[1760784163858,2.73,185.96,185.93,1.83240036]
[1760784164472,2.73,185.96,185.93,2.63]
[1760784164669,2.73,185.97,185.94,1.83240036]
[1760784164863,2.73,185.99,185.92,1.83240036]
[1760784165062,2.73,185.97,185.92,1.83240036]
[1760784165264,2.73,185.95,185.92,1.83240036]
[1760784166172,4.839,185.94,185.9,4.46240036]
[1760784166468,2.85,185.92,185.88,1.83240036]
[1760784166672,2.85,185.92,185.88,4.50240036]
[1760784166865,2.85,185.93,185.88,4.50240036]
[1760784167168,2.85,185.92,185.88,4.50240036]
[1760784167368,4.839,185.94,185.88,4.50240036]
[1760784167567,4.839,185.94,185.9,1.83240036]
[1760784167761,4.839,185.94,185.91,2.67]
[1760784167965,7.689,185.94,185.91,2.67]
[1760784168668,7.689,185.94,185.9,4.50240036]
[1760784168869,4.839,185.94,185.88,1.83240036]
[1760784169066,4.839,185.94,185.86,7.5109]
[1760784169067,9.96961472,185.93,185.86,4.50240036]
[1760784169371,2.85,185.92,185.86,4.50240036]
[1760784170963,7.6897,185.92,185.86,4.50240036]
[1760784171370,1.83240036,185.98,185.89,2.67]
[1760784171671,7.6891,185.94,185.9,4.50240036]
[1760784171873,7.6891,185.94,185.91,2.67]
[1760784172171,4.8386,185.96,185.92,1.83240036]
[1760784172371,5.1382266,185.95,185.92,1.83240036]
[1760784172672,2.85,185.95,185.92,1.83240036]
[1760784172869,2.85,186.04,185.95,2.67]
[1760784173070,2.85,186.02,185.96,1.83240036]
[1760784173264,1.83240036,186.04,185.96,1.83240036]
[1760784173265,2.85,186.0,185.96,1.83240036]
[1760784173673,2.85,186.0,185.96,4.50240036]
[1760784173873,2.85,186.01,185.96,4.50240036]
[1760784174068,7.98829838,186.0,185.96,4.50240036]
[1760784174267,2.85,186.01,185.96,4.50240036]
[1760784174466,2.85,185.99,185.96,1.83240036]
[1760784175273,7.6869,186.02,185.96,4.50240036]
[1760784175470,5.13878969,186.01,185.96,4.50240036]
[1760784175665,5.13878969,186.0,185.98,1.83240036]
[1760784175865,7.6863,186.05,185.98,1.83240036]
[1760784176073,7.98951068,186.04,186.01,1.83240036]
[1760784176271,5.13951068,186.03,185.97,2.67]
[1760784176471,5.13951068,186.02,186.01,1.83240036]
[1760784176874,5.13885216,186.02,186.01,1.83240036]
[1760784177073,2.85,186.04,185.98,2.67]
[1760784177272,5.13885346,186.03,186.01,1.83240036]
[1760784177478,5.13885346,186.02,186.01,1.83240036]
[1760784178079,5.13885346,186.02,185.9,4.8399]
[1760784178283,23.15486395,186.01,185.93,1.83240036]
[1760784178582,9.27195395,186.0,185.95,1.83240036]
[1760784178787,5.13939635,185.99,185.97,2.67]
[1760784178984,7.6867,186.03,185.97,2.67]
[1760784179181,2.85,186.01,186.0,1.83240036]
[1760784179381,5.13906792,186.01,186.0,1.83240036]
[1760784179684,7.98906792,186.01,185.93,2.67]
[1760784179883,9.27185843,186.0,185.96,1.83240036]
[1760784180082,5.13906792,185.99,185.98,1.83240036]
[1760784180485,5.11731511,185.99,185.98,1.83240036]
[1760784180789,2.85,186.01,185.98,1.83240036]
[1760784181087,5.11748355,186.0,185.98,4.50240036]
[1760784181280,4.8367,186.03,185.98,4.50240036]
[1760784181477,7.966854,186.02,186.0,1.83240036]
[1760784181688,5.116854,186.01,186.0,1.83240036]
[1760784182591,7.966854,186.01,185.95,2.67]
[1760784182886,5.116854,186.0,185.98,1.83240036]
[1760784183080,2.85,186.01,185.98,1.83240036]
[1760784184988,4.836,186.06,186.0,1.83240036]
[1760784185188,2.78,186.04,186.0,1.83240036]
[1760784185482,7.8992747,186.03,186.0,1.83240036]
[1760784185687,5.1192747,186.02,185.97,4.838]
[1760784185888,2.78,186.08,186.02,2.8]
[1760784186089,4.8352,186.09,186.03,1.83240036]
[1760784186090,2.78,186.06,186.03,1.83240036]
[1760784186293,7.89877158,186.05,186.03,1.83240036]
[1760784186587,2.78,186.04,186.03,1.83240036]
[1760784186890,7.89690521,186.04,186.03,1.83240036]
[1760784187990,2.78,186.04,186.03,1.83240036]
[1760784188490,2.78,186.04,185.97,4.838]
[1760784188692,2.78,186.04,186.01,1.83240036]
[1760784188891,4.8364,186.05,186.01,1.83240036]
[1760784189190,2.78,186.02,185.99,1.83240036]
[1760784189392,2.78,186.01,185.99,1.83240036]
[1760784189793,1.83240036,186.08,185.99,1.83240036]
[1760784189794,4.8362,186.05,186.0,2.8]
[1760784189991,2.78,186.09,186.02,1.83240036]
[1760784190180,9.24455585,186.08,186.04,1.83240036]
[1760784190382,2.78,186.06,186.04,1.83240036]
[1760784190782,4.41114802,186.05,186.04,1.83240036]
[1760784191192,2.78,186.06,186.04,1.83240036]
[1760784194396,2.78,186.05,186.02,1.83240036]
[1760784194593,1.83240036,186.08,186.0,1.83240036]
[1760784194800,2.78,186.06,186.0,1.83240036]
[1760784194992,2.78,186.04,186.0,1.83240036]
[1760784195495,2.78,186.04,186.02,1.83240036]
[1760784195887,2.78,186.07,186.0,4.63240036]
[1760784196092,12.11728634,186.06,186.02,1.83240036]
[1760784196289,2.6,186.09,186.02,1.83240036]
[1760784196495,9.51704179,186.08,186.02,1.83240036]
[1760784196795,7.4363,186.05,186.02,1.83240036]
[1760784196999,2.6,186.04,186.02,1.83240036]
[1760784198001,4.8366,186.04,185.99,1.83240036]
[1760784198196,2.6,186.03,185.99,1.83240036]
[1760784200397,2.6,186.03,186.01,1.83240036]
[1760784201097,4.8366,186.04,186.01,1.83240036]
[1760784201294,4.8366,186.04,186.0,2.64]
[1760784201601,2.6,186.03,185.97,7.4781]
[1760784201898,2.6,186.03,186.0,1.83240036]
[1760784202601,4.836,186.06,186.02,1.83240036]
[1760784202795,7.01201242,186.05,186.02,1.83240036]
[1760784203098,4.836,186.06,186.04,1.83240036]
[1760784203999,2.6,186.08,186.04,1.83240036]
[1760784204000,2.6,186.08,186.05,2.64]
[1760784204201,2.6,186.1,186.06,1.83240036]
[1760784204399,12.13052245,186.09,186.06,1.83240036]
[1760784204596,4.41426041,186.08,186.06,1.83240036]
[1760784204801,2.6,186.09,186.06,1.83240036]
[1760784205002,4.41426041,186.08,186.06,1.83240036]
[1760784205305,2.6,186.09,186.07,1.83240036]
[1760784205497,7.4346,186.11,186.07,1.83240036]
[1760784205704,9.53198097,186.1,186.04,7.4763]
[1760784205904,4.41501976,186.09,186.08,1.83240036]
[1760784206995,4.41501976,186.09,186.08,4.47240036]
[1760784207395,9.53271235,186.09,186.08,4.47240036]
[1760784208607,9.53271235,186.09,186.08,1.83240036]
[1760784209707,2.6,186.08,186.02,4.8368]
[1760784209898,2.6,186.09,186.05,1.83240036]
[1760784210101,2.6,186.07,186.05,1.83240036]
[1760784211397,2.6,186.05,186.02,2.85843008]
[1760784211601,2.6,186.07,186.01,2.64]
[1760784211798,9.55761764,186.06,186.01,2.64]
[1760784212100,5.00662391,186.09,185.99,5.49843008]
[1760784212101,2.6,186.04,185.99,5.49843008]
[1760784212705,2.6,186.05,185.97,7.69653008]
[1760784212912,9.56254412,186.04,185.97,7.69653008]
[1760784213210,9.56254412,186.03,185.97,7.69653008]
[1760784213406,2.6,186.05,185.97,7.69653008]
[1760784213611,9.56672429,186.04,185.97,7.69653008]
[1760784213809,9.56672429,186.03,185.97,2.85843008]
[1760784214004,9.5671358,186.02,185.97,2.85843008]
[1760784214204,2.6,186.02,185.97,5.49843008]
[1760784214406,2.6,186.02,185.98,2.64]
[1760784214606,2.6,186.03,185.97,2.85843008]
[1760784214814,2.6,186.01,185.97,2.85843008]
[1760784215209,2.6,186.01,185.97,5.49843008]
[1760784215607,5.00662391,186.05,185.97,5.49843008]
[1760784215608,4.8371,186.02,185.97,2.85843008]
[1760784215809,12.18015391,186.01,185.94,2.85843008]
[1760784216009,9.58015391,186.0,185.92,2.64]
[1760784216213,12.18015391,185.99,185.92,2.64]
[1760784216515,9.58015391,185.98,185.92,2.64]
[1760784216815,9.58015391,185.97,185.91,5.49843008]
[1760784217014,9.58780436,185.96,185.91,2.85843008]
[1760784217204,2.6,185.97,185.93,2.64]
[1760784217809,12.19242631,185.96,185.93,2.64]
[1760784218008,2.6,185.96,185.93,2.64]
[1760784218208,2.6,185.96,185.91,2.85843008]
[1760784218514,2.6,185.96,185.92,2.64]
[1760784218714,2.6,185.96,185.91,2.85843008]
[1760784219116,2.6,185.96,185.92,2.64]
[1760784219322,2.6,185.96,185.91,2.85843008]
[1760784220716,2.6,185.96,185.92,2.64]
[1760784220913,12.44402391,186.01,185.92,2.64]
[1760784221116,9.62873025,186.0,185.94,2.85843008]
[1760784221321,12.22873025,185.99,185.95,2.64]
[1760784221519,9.62873025,185.98,185.95,2.64]
[1760784221817,4.46893045,185.97,185.94,2.85843008]
[1760784222017,2.6,186.0,185.94,2.85843008]
[1760784222222,12.22712159,185.99,185.94,5.49843008]
[1760784222525,12.22712159,185.98,185.94,5.49843008]
[1760784222717,4.46837076,185.97,185.94,5.49843008]
[1760784222916,2.6,185.98,185.94,5.49843008]
[1760784223217,4.46780032,185.97,185.94,5.49843008]
[1760784223419,2.6,185.98,185.94,5.49843008]
[1760784223618,4.46725549,185.97,185.94,5.49843008]
[1760784223914,2.6,185.98,185.94,5.49843008]
[1760784224118,4.46725496,185.97,185.94,5.49843008]
[1760784224419,2.6,185.98,185.94,5.49843008]
[1760784224720,4.46692986,185.97,185.94,5.49843008]
[1760784225013,2.6,185.98,185.94,5.49843008]
[1760784225220,4.46692986,185.97,185.94,5.49843008]
[1760784225520,2.6,185.98,185.94,5.49843008]
[1760784225720,4.46671221,185.97,185.94,5.49843008]
[1760784226019,2.6,185.98,185.94,5.49843008]
[1760784226222,4.46671194,185.97,185.94,5.49843008]
[1760784226419,2.6,185.98,185.94,5.49843008]
[1760784226721,4.46638614,185.97,185.94,5.49843008]
[1760784226921,2.6,185.98,185.94,5.49843008]
[1760784227218,4.8374,186.01,185.59,438.18301138]
[1760784227219,2.79,185.96,185.88,2.85843008]
[1760784227417,9.62176301,185.95,185.88,2.85843008]
[1760784227614,9.62176301,185.94,185.88,2.85843008]
[1760784227815,12.41176301,185.93,185.88,2.85843008]
[1760784228014,5.00662391,185.97,185.92,2.82]
[1760784228015,2.79,185.97,185.92,2.82]
[1760784228222,9.61664752,185.96,185.91,2.85843008]
[1760784228519,9.61664752,185.96,185.85,2.85843008]
[1760784228520,2.79,186.0,185.94,2.85843008]
[1760784228722,12.40706463,185.99,185.95,2.82]
[1760784228919,9.61706463,185.98,185.95,2.82]
[1760784229122,4.46358499,185.97,185.95,2.82]
[1760784229318,2.79,186.0,185.94,2.85843008]
[1760784229524,9.60704319,185.99,185.94,2.85843008]
[1760784229821,2.79,185.97,185.94,2.85843008]
[1760784230022,2.79,186.0,185.94,2.85843008]
[1760784230215,2.79,185.98,185.94,2.85843008]
[1760784230420,7.24418237,185.97,185.94,5.67843008]
[1760784230720,2.79,185.97,185.94,5.67843008]
[1760784231017,2.79,185.99,185.94,2.85843008]
[1760784231215,9.60598986,185.98,185.94,5.67843008]
[1760784231421,7.6277,186.0,185.94,5.67843008]
[1760784231620,12.39553767,185.99,185.94,2.85843008]
[1760784231815,9.60553767,185.98,185.95,2.82]
[1760784232019,7.79662391,186.02,185.95,2.82]
[1760784232214,9.6055437,186.01,185.95,2.82]
[1760784232417,9.6055437,186.0,185.95,2.82]
[1760784232623,2.79,186.02,185.95,2.82]
[1760784232825,9.60399978,186.01,185.95,2.82]
[1760784233018,9.60399978,186.0,185.94,7.69723008]
[1760784233217,2.79,186.02,185.95,2.82]
[1760784233415,9.60377423,186.01,185.95,2.82]
[1760784233618,9.60377423,186.0,185.95,2.82]
[1760784233817,2.79,186.02,185.95,2.82]
[1760784234035,9.60377267,186.01,185.95,2.82]
[1760784234227,9.60377267,186.0,185.94,7.69723008]
[1760784234428,2.79,186.02,185.95,2.82]
[1760784234623,9.60353919,186.01,185.95,2.82]
[1760784234822,2.79,185.99,185.92,2.82]
[1760784235027,9.60353919,185.98,185.92,2.82]
[1760784235224,2.79,185.96,185.92,2.82]
[1760784236930,2.79,185.96,185.91,2.85843008]
[1760784237428,2.79,185.96,185.92,2.82]
[1760784237623,2.79,185.96,185.91,2.85843008]
[1760784237928,7.6277,186.0,185.92,2.82]
[1760784238129,9.59892935,185.99,185.92,2.82]
[1760784238323,9.59892935,185.98,185.92,2.82]
[1760784238528,7.6277,186.0,185.92,2.82]
[1760784238826,9.59973753,185.99,185.94,2.85843008]
[1760784239025,4.45095822,185.98,185.94,2.85843008]
[1760784239226,2.79,186.0,185.94,5.67843008]
[1760784239426,9.6391243,185.99,185.94,2.85843008]
[1760784239625,2.79,186.0,185.94,2.85843008]
[1760784239819,2.79,186.0,185.94,7.69723008]
[1760784240025,2.79,186.03,185.97,2.85843008]
[1760784240222,9.63878768,186.02,185.97,2.85843008]
[1760784240428,7.79662391,186.06,185.98,2.82]
[1760784240629,9.63838003,186.05,185.98,2.82]
[1760784240928,9.63838003,186.04,185.98,2.82]
[1760784241127,9.63838003,186.03,185.98,2.82]
[1760784241427,9.63838003,186.02,185.98,2.82]
[1760784241632,2.79,186.06,185.99,2.82]
[1760784241838,9.63322485,186.05,185.99,2.82]
[1760784242132,9.63322485,186.05,185.98,4.8378]
[1760784242133,9.63322485,186.04,186.0,2.82]
[1760784242332,2.79,186.06,186.0,2.82]
[1760784242632,9.6120089,186.05,186.01,2.82]
[1760784242829,7.6251,186.09,186.01,2.82]
[1760784243130,9.61106153,186.08,186.01,2.82]
[1760784243331,9.61106153,186.07,186.01,2.82]
[1760784243530,9.61106153,186.06,186.01,2.82]
[1760784243731,2.79,186.09,186.01,2.82]
[1760784243932,9.60991375,186.08,186.01,2.82]
[1760784244132,9.60991375,186.07,186.01,2.82]
[1760784244322,9.60991375,186.06,186.01,2.82]
[1760784244525,2.79,186.09,186.01,2.82]
[1760784244727,9.60904675,186.08,186.01,2.82]
[1760784244931,2.79,186.06,185.99,2.85843008]
[1760784245127,9.60929171,186.05,185.97,7.658]
[1760784245333,5.00662391,186.08,185.97,7.658]
[1760784245334,12.22929171,186.04,185.97,7.658]
[1760784245534,9.61123908,186.03,185.97,7.658]
[1760784245732,12.23123908,186.02,185.97,2.82]
[1760784245933,2.62,186.01,185.97,2.82]
[1760784246537,2.62,186.01,185.98,2.87]
[1760784248136,2.62,186.04,185.98,2.87]
[1760784248334,5.00662391,186.08,186.01,2.85843008]
[1760784248641,2.62,186.1,186.04,2.85843008]
[1760784248941,2.62,186.1,186.03,2.85843008]
[1760784248942,9.60877343,186.09,186.03,2.85843008]
[1760784249246,2.62,186.1,186.04,4.8362]
[1760784249443,2.62,186.1,186.06,2.87]
[1760784250446,5.00662391,186.15,186.02,7.7069]
[1760784250641,2.62,186.13,186.02,10.56533008]
[1760784250844,2.62,186.11,186.02,10.56533008]
[1760784251044,5.18199749,186.1,186.02,10.56533008]
[1760784251245,2.62,186.11,186.02,10.56533008]
[1760784251445,2.62,186.11,186.03,4.8365]
[1760784254050,2.62,186.11,186.04,2.87]
[1760784254251,2.62,186.11,186.05,2.85843008]
[1760784256551,2.62,186.11,186.05,7.69433008]
[1760784257852,5.00662391,186.16,186.05,2.85843008]
[1760784258058,2.82,186.14,186.06,2.75]
[1760784258258,9.58128076,186.13,186.06,2.75]
[1760784258557,2.82,186.14,186.06,2.75]
[1760784258757,9.57810415,186.13,186.06,2.75]
[1760784258955,2.82,186.14,186.09,2.75]
[1760784259156,9.57810415,186.13,186.09,2.75]
[1760784259457,2.82,186.14,186.03,47.57]
[1760784259752,9.57506652,186.13,186.05,2.75]
[1760784259958,2.82,186.14,186.05,2.75]
[1760784260160,9.57506652,186.13,186.05,2.75]
[1760784260458,2.82,186.14,186.05,2.75]
[1760784260658,9.57224788,186.13,186.05,2.75]
[1760784260956,2.82,186.14,186.06,4.8357]
[1760784261157,9.57224788,186.13,186.06,4.8357]
[1760784261358,2.82,186.14,186.06,4.8357]
[1760784261559,5.17057558,186.13,186.06,4.8357]
[1760784261760,2.82,186.14,186.06,4.8357]
[1760784262058,5.17057558,186.13,186.06,4.8357]
[1760784262249,7.6539,186.14,186.06,4.8357]
[1760784262449,12.38866703,186.13,186.06,4.8357]
[1760784262750,2.82,186.13,186.06,4.8357]
[1760784262951,2.85843008,186.16,186.05,2.75]
[1760784262952,2.82,186.12,186.05,2.75]
[1760784263150,2.85843008,186.16,186.02,91.49563953]
[1760784263151,2.85843008,186.13,186.02,91.49563953]
[1760784263353,2.85843008,186.1,186.02,91.49563953]
[1760784263563,2.82,186.09,186.02,91.49563953]
[1760784263761,2.82,186.09,185.97,2.75]
[1760784264063,2.82,186.06,185.94,2.85843008]
[1760784264254,2.82,186.06,185.93,2.75]
[1760784264255,2.82,186.04,185.96,4.8383]
[1760784264452,2.82,186.04,185.95,2.75]
[1760784264851,2.82,186.03,185.95,2.75]
[1760784265052,2.82,186.0,185.92,8.9]
[1760784265856,4.8379,185.99,185.91,2.75]
[1760784266057,2.82,185.98,185.91,2.75]
[1760784267158,2.82,186.02,185.91,2.75]
[1760784267357,2.82,186.02,185.94,2.75]
[1760784267757,2.82,186.02,185.94,16.25]
[1760784268058,2.82,186.02,185.94,2.75]
[1760784268452,2.82,186.02,185.94,7.5888]